lending/lending_fUSD_20250218
["ID","MTS","AMOUNT","RATE_DAILY","PERIOD"]
[353492174,1739880664060,-500.0,0.00015013,2]
[353492175,1739880664069,-500.0,0.00015013,2]
[353492176,1739880664079,-1000.0,0.00015021,2]
[353492177,1739880664088,-500.0,0.00015023,2]
[353492178,1739880664098,-1868.0,0.00015031,2]
[353492179,1739880664107,-1100.0,0.0001506,2]
[353492180,1739880664118,-500.0,0.0001506,2]
[353492181,1739880664127,-1100.0,0.0001506,2]
[353492182,1739880664137,-1629.02,0.00015068,2]
[353492183,1739880664147,-440.17,0.00015068,2]
[353492184,1739880664156,-440.17,0.00015068,2]
[353492185,1739880664165,-440.17,0.00015068,2]
[353492186,1739880664176,-300.0,0.00015068,2]
[353492187,1739880664185,-167.04444585,0.00015095,2]
[353492188,1739880664195,-173.03805573,0.00015095,2]
[353492189,1739880664204,-500.0,0.00015095,2]
[353492190,1739880664213,-820.59,0.00015095,2]
[353492191,1739880664223,-598.34,0.00015095,2]
[353492192,1739880664233,-500.0,0.00015095,2]
[353492193,1739880664243,-778.2,0.00015095,2]
[353492194,1739880664253,-557.95,0.00015095,2]
[353492195,1739880664263,-777.52,0.00015095,2]
[353492196,1739880664272,-535.95,0.00015095,2]
[353492197,1739880664281,-500.0,0.00015095,2]
[353492198,1739880664291,-500.0,0.00015095,2]
[353492199,1739880664300,-564.61,0.00015095,2]
[353492200,1739880664309,-501.08,0.00015095,2]
[353492201,1739880664318,-747.63,0.00015095,2]
[353492202,1739880664327,-554.01,0.00015095,2]
[353492203,1739880664336,-500.0,0.00015095,2]
[353492204,1739880664345,-298.42259673,0.00015095,2]
[353492205,1739880664355,-500.0,0.00015095,2]
[353492206,1739880664364,-911.47,0.00015095,2]
[353492207,1739880664374,-500.0,0.00015095,2]
[353492208,1739880664384,-1000.58,0.00015095,2]
[353492209,1739880664393,-500.0,0.00015095,2]
[353492210,1739880664403,-614.2,0.00015095,2]
[353492211,1739880664413,-555.55,0.00015095,2]
[353492212,1739880664422,-500.0,0.00015095,2]
[353492213,1739880664432,-509.19001597,0.00015095,2]
[353492214,1739880664442,-616.68799309,0.00015095,2]
[353492215,1739880664451,-1678.1,0.00015095,2]
[353492216,1739880664461,-500.0,0.00015095,2]
[353492217,1739880664471,-500.0,0.00015095,2]
[353492218,1739880664481,-500.0,0.00015095,2]
[353492219,1739880664490,-150.0,0.00015141,2]
[353492220,1739880664500,-478.30003268,0.0001516,2]
[353492221,1739880664510,-500.0,0.00015178,2]
[353492222,1739880664519,-820.59,0.00015178,2]
[353492223,1739880664529,-598.34,0.00015178,2]
[353492224,1739880664538,-603.31936624,0.00015178,2]
[353492225,1739880664547,-778.2,0.00015178,2]
[353492226,1739880664556,-557.95,0.00015178,2]
[353492227,1739880664566,-777.52,0.00015178,2]
[353492228,1739880664575,-535.95,0.00015178,2]
[353492229,1739880664584,-449.02229096,0.00015178,2]
[353492230,1739880664594,-500.0,0.00015178,2]
[353492231,1739880664603,-564.61,0.00015178,2]
[353492232,1739880664612,-501.08,0.00015178,2]
[353492233,1739880664621,-747.63,0.00015178,2]
[353492234,1739880664631,-554.01,0.00015178,2]
[353492235,1739880664640,-433.67514355,0.00015178,2]
[353492236,1739880664649,-500.0,0.00015178,2]
[353492237,1739880664658,-911.47,0.00015178,2]
[353492238,1739880664668,-500.0,0.00015178,2]
[353492239,1739880664681,-1000.58,0.00015178,2]
[353492240,1739880664691,-500.0,0.00015178,2]
[353492241,1739880664700,-614.2,0.00015178,2]
[353492242,1739880664710,-555.55,0.00015178,2]
[353492243,1739880664720,-500.0,0.00015178,2]
[353492244,1739880664729,-1678.1,0.00015178,2]
[353492245,1739880664738,-583.30086139,0.00015178,2]
[353492246,1739880664749,-499.61376464,0.00015178,2]
[353492247,1739880664759,-500.0,0.00015178,2]
[353492248,1739880664768,-1868.0,0.0001518,2]
[353492249,1739880664778,-500.0,0.0001526,2]
[353492250,1739880664787,-820.59,0.0001526,2]
[353492251,1739880664796,-598.34,0.0001526,2]
[353492252,1739880664805,-778.2,0.0001526,2]
[353492253,1739880664814,-557.95,0.0001526,2]
[353492254,1739880664824,-777.52,0.0001526,2]
[353492255,1739880664833,-535.95,0.0001526,2]
[353492256,1739880664843,-500.0,0.0001526,2]
[353492257,1739880664852,-564.61,0.0001526,2]
[353492258,1739880664861,-501.08,0.0001526,2]
[353492259,1739880664870,-747.63,0.0001526,2]
[353492260,1739880664879,-554.01,0.0001526,2]
[353492261,1739880664888,-380.14496079,0.0001526,2]
[353492262,1739880664897,-911.47,0.0001526,2]
[353492263,1739880664907,-245.71260565,0.0001526,2]
[353492264,1739880664915,-1000.58,0.0001526,2]
[353492265,1739880664924,-500.0,0.0001526,2]
[353492266,1739880664934,-614.2,0.0001526,2]
[353492267,1739880664948,-555.55,0.0001526,2]
[353492268,1739880664957,-324.92694159,0.0001526,2]
[353492269,1739880664967,-1678.1,0.0001526,2]
[353492270,1739880664976,-544.24269649,0.0001526,2]
[353492271,1739880664986,-150.99,0.0001531,2]
[353492272,1739880664995,-446.23,0.0001531,2]
[353492273,1739880665005,-999.99,0.0001531,2]
[353492274,1739880665014,-9999.99,0.0001531,2]
[353492275,1739880665023,-640.23,0.0001531,2]
[353492276,1739880665034,-150.99,0.0001531,2]
[353492277,1739880665043,-299.99,0.0001531,2]
[353492278,1739880665053,-1868.0,0.00015328,2]
[353492279,1739880665066,-508.7887902,0.00015342,2]
[353492280,1739880665076,-820.59,0.00015342,2]
[353492281,1739880665085,-598.34,0.00015342,2]
[353492282,1739880665095,-778.2,0.00015342,2]
[353492283,1739880665104,-557.95,0.00015342,2]
[353492284,1739880665113,-777.52,0.00015342,2]
[353492285,1739880665123,-535.95,0.00015342,2]
[353492286,1739880665132,-500.0,0.00015342,2]
[353492287,1739880665141,-564.61,0.00015342,2]
[353492288,1739880665150,-501.08,0.00015342,2]
[353492289,1739880665159,-747.63,0.00015342,2]
[353492290,1739880665168,-554.01,0.00015342,2]
[353492291,1739880665178,-911.47,0.00015342,2]
[353492292,1739880665188,-1000.58,0.00015342,2]
[353492293,1739880665197,-500.0,0.00015342,2]
[353492294,1739880665207,-614.2,0.00015342,2]
[353492295,1739880665216,-555.55,0.00015342,2]
[353492296,1739880665225,-1678.1,0.00015342,2]
[353492297,1739880665235,-7288.17477596,0.000154,2]
[353492298,1739880665244,-820.59,0.00015424,2]
[353492299,1739880665253,-598.34,0.00015424,2]
[353492300,1739880665263,-778.2,0.00015424,2]
[353492301,1739880665273,-557.95,0.00015424,2]
[353492302,1739880665283,-777.52,0.00015424,2]
[353492303,1739880665292,-535.95,0.00015424,2]
[353492304,1739880665302,-500.0,0.00015424,2]
[353492305,1739880665311,-564.61,0.00015424,2]
[353492306,1739880665320,-501.08,0.00015424,2]
[353492307,1739880665330,-747.63,0.00015424,2]
[353492308,1739880665339,-554.01,0.00015424,2]
[353492309,1739880665350,-911.47,0.00015424,2]
[353492310,1739880665359,-1000.58,0.00015424,2]
[353492311,1739880665368,-315.3,0.00015424,2]
[353492312,1739880665378,-614.2,0.00015424,2]
[353492313,1739880665387,-555.55,0.00015424,2]
[353492314,1739880665396,-1678.1,0.00015424,2]
[353492315,1739880665405,-1517.14677,0.000155,2]
[353492316,1739880665415,-150.0,0.00015501,2]
[353492317,1739880665426,-820.59,0.00015506,2]
[353492318,1739880665435,-598.34,0.00015506,2]
[353492319,1739880665444,-778.2,0.00015506,2]
[353492320,1739880665454,-557.95,0.00015506,2]
[353492321,1739880665464,-777.52,0.00015506,2]
[353492322,1739880665473,-535.95,0.00015506,2]
[353492323,1739880665483,-500.0,0.00015506,2]
[353492324,1739880665493,-564.61,0.00015506,2]
[353492325,1739880665503,-501.08,0.00015506,2]
[353492326,1739880665512,-747.63,0.00015506,2]
[353492327,1739880665522,-554.01,0.00015506,2]
[353492328,1739880665531,-911.47,0.00015506,2]
[353492329,1739880665541,-1000.58,0.00015506,2]
[353492330,1739880665550,-614.2,0.00015506,2]
[353492331,1739880665560,-555.55,0.00015506,2]
[353492332,1739880665569,-1678.1,0.00015506,2]
[353492333,1739880665578,-427.73,0.00015516,2]
[353492334,1739880665587,-152.0,0.00015586,4]
[353492335,1739880665597,-820.65106774,0.00015589,2]
[353492336,1739880665607,-598.46605583,0.00015589,2]
[353492337,1739880665617,-778.3711601,0.00015589,2]
[353492338,1739880665627,-557.951744,0.00015589,2]
[353492339,1739880665636,-777.68543807,0.00015589,2]
[353492340,1739880665646,-535.95231156,0.00015589,2]
[353492341,1739880665656,-255.04884935,0.00015589,2]
[353492342,1739880665666,-564.68730443,0.00015589,2]
[353492343,1739880665680,-501.0861536,0.00015589,2]
[353492344,1739880665690,-747.84530843,0.00015589,2]
[353492345,1739880665700,-554.24175334,0.00015589,2]
[353492346,1739880665710,-911.63205809,0.00015589,2]
[353492347,1739880665721,-1000.73574769,0.00015589,2]
[353492348,1739880665732,-614.23215888,0.00015589,2]
[353492349,1739880665742,-555.76637597,0.00015589,2]
[353492350,1739880665753,-1678.23116638,0.00015589,2]
[353492351,1739880665763,-150.0,0.00015862,2]
[353492352,1739880665773,-900.0,0.00016,17]
[353492353,1739880665783,-2000.0,0.00016,2]
[353492354,1739880665792,-2000.0,0.0001601,2]
[353492355,1739880665803,-3725.292683,0.0001602,2]
[353492356,1739880665813,-1500.0,0.00016022,2]
[353492357,1739880665822,-150.0,0.00016222,2]
[353492358,1739880665832,-213.86,0.00016233,2]
[353492359,1739880665841,-1000.0,0.00016345,2]
[353492360,1739880665851,-152.0,0.00016357,5]
[353492361,1739880665861,-1100.0,0.0001643,2]
[353492362,1739880665870,-500.0,0.0001643,2]
[353492363,1739880665879,-1100.0,0.0001643,2]
[353492364,1739880665889,-1000.0,0.00016438,3]
[353492365,1739880665898,-300.0,0.00016438,2]
[353492366,1739880665907,-150.0,0.00016438,2]
[353492367,1739880665917,-877.94,0.00016438,2]
[353492368,1739880665926,-387.99,0.00016438,2]
[353492369,1739880665935,-336.62,0.00016438,2]
[353492370,1739880665944,-986.58,0.00016438,2]
[353492371,1739880665954,-545.3,0.00016452,2]
[353492372,1739880665963,-200.86,0.00016499,2]
[353492373,1739880665972,-150.0,0.00016583,2]
[353492374,1739880665981,-748.78,0.00016658,30]
[353492375,1739880665990,-262.8214346,0.0001666,2]
[353492376,1739880665999,-335.78411,0.00016688,7]
[353492377,1739880666008,-1000.0,0.00016712,3]
[353492378,1739880666017,-176.46,0.00016712,2]
[353492379,1739880666026,-1530.83618234,0.000168,2]
[353492380,1739880666035,-75141.526174,0.000168,8]
[353492381,1739880666045,-540.82,0.00016845,2]
[353492382,1739880666054,-74647.14811504,0.0001688,2]
[353492383,1739880666063,-335.78411,0.00016888,7]
[353492384,1739880666073,-150.0,0.00016943,2]
[353492385,1739880666082,-1000.0,0.00016986,3]
[353492386,1739880666091,-500.0,0.00016988,30]
[353492387,1739880666234,-900.0,0.00017,18]
[353492388,1739880666249,-9107.05417431,0.00017037,2]
[353492389,1739880666259,-9107.05417429,0.00017037,2]
[353492390,1739880666268,-9107.05417429,0.00017037,2]
[353492391,1739880666277,-335.78411,0.00017088,7]
[353492392,1739880666286,-250.0,0.00017123,2]
[353492393,1739880666296,-152.0,0.00017128,6]
[353492394,1739880666305,-228.63980222,0.00017128,5]
[353492395,1739880666314,-1517.14679,0.000172,2]
[353492396,1739880666324,-1000.0,0.0001726,3]
[353492397,1739880666333,-1629.02,0.0001726,4]
[353492398,1739880666342,-53847.62748734,0.00017285,5]
[353492399,1739880666351,-335.78411,0.00017288,7]
[353492400,1739880666361,-150.0,0.00017304,2]
[353492401,1739880666371,-2000.0,0.0001732,2]
[353492402,1739880666381,-150.0,0.0001737,2]
[353492403,1739880666391,-300.0,0.0001737,2]
[353492404,1739880666401,-150.0,0.0001737,2]
[353492405,1739880666410,-1972.23,0.0001737,2]
[353492406,1739880666419,-150.0,0.0001737,2]
[353492407,1739880666429,-150.0,0.0001737,2]
[353492408,1739880666438,-150.0,0.0001737,2]
[353492409,1739880666448,-500.0,0.00017421,2]
[353492410,1739880666457,-335.78411,0.00017488,7]
[353492411,1739880666467,-500.0,0.00017521,2]
[353492412,1739880666476,-1000.0,0.00017534,3]
[353492413,1739880666488,-500.0,0.00017621,2]
[353492414,1739880666498,-150.0,0.00017664,2]
[353492415,1739880666507,-335.78411,0.00017688,7]
[353492416,1739880666516,-150.0,0.0001769,2]
[353492417,1739880666525,-213.86,0.00017709,2]
[353492418,1739880666534,-500.0,0.00017721,2]
[353492419,1739880666544,-1100.0,0.000178,2]
[353492420,1739880666553,-500.0,0.000178,2]
[353492421,1739880666562,-1100.0,0.000178,2]
[353492422,1739880666571,-1000.0,0.00017808,3]
[353492423,1739880666581,-600.0,0.00017808,2]
[353492424,1739880666590,-200.0,0.00017808,2]
[353492425,1739880666599,-500.0,0.00017821,2]
[353492426,1739880666609,-1000.0,0.00017831,2]
[353492427,1739880666619,-335.78411,0.00017888,7]
[353492428,1739880666628,-500.0,0.00017921,2]
[353492429,1739880666637,-1500.0,0.00017984,3]
[353492430,1739880666647,-200.86,0.00017999,2]
[353492431,1739880666657,-900.0,0.00018,19]
[353492432,1739880666667,-13557.60966793,0.00018,2]
[353492433,1739880666679,-2106.72,0.00018,8]
[353492434,1739880666689,-149558.45,0.00018,30]
[353492435,1739880666699,-10000.0,0.00018,2]
[353492436,1739880666708,-15148.72040859,0.00018,2]
[353492437,1739880666719,-35207.85637085,0.00018,2]
[353492438,1739880666728,-401.10973839,0.00018,5]
[353492439,1739880666738,-1137.83922105,0.00018,2]
[353492440,1739880666748,-325958.65903356,0.00018,3]
[353492441,1739880666759,-23695.98879767,0.00018,2]
[353492442,1739880666769,-500.0,0.00018021,2]
[353492443,1739880666779,-150.0,0.00018025,2]
[353492444,1739880666789,-1000.0,0.00018082,3]
[353492445,1739880666798,-200.0,0.00018082,2]
[353492446,1739880666807,-335.78411,0.00018088,7]
[353492447,1739880666817,-1701.9989954,0.000181,2]
[353492448,1739880666826,-251984.50430131,0.000181,2]
[353492449,1739880666835,-500.0,0.00018121,2]
[353492450,1739880666844,-500.0,0.00018221,2]
[353492451,1739880666854,-335.78411,0.00018288,7]
[353492452,1739880666864,-223032.65800904,0.000183,2]
[353492453,1739880666873,-500.0,0.00018321,2]
[353492454,1739880666883,-646.34670107,0.00018356,3]
[353492455,1739880666892,-82614.42,0.00018356,2]
[353492456,1739880666901,-150.0,0.00018385,2]
[353492457,1739880666911,-300.0,0.00018415,2]
[353492458,1739880666921,-500.0,0.00018421,2]
[353492459,1739880666930,-335.78411,0.00018488,7]
[353492460,1739880666939,-286494.43247204,0.000185,2]
[353492461,1739880666948,-60086.08481733,0.000185,6]
[353492462,1739880666958,-7574.32719013,0.00018502,2]
[353492463,1739880666967,-500.0,0.00018521,2]
[353492464,1739880666976,-300.0,0.00018599,2]
[353492465,1739880666986,-154.58,0.000186,2]
[353492466,1739880666995,-154.58,0.000186,2]
[353492467,1739880667004,-500.0,0.00018621,2]
[353492468,1739880667013,-4018.87807418,0.00018654,3]
[353492469,1739880667022,-335.78411,0.00018688,7]
[353492470,1739880667031,-2079.82757127,0.000187,5]
[353492471,1739880667041,-500.0,0.00018721,2]
[353492472,1739880667050,-150.0,0.00018746,2]
[353492473,1739880667060,-300.0,0.00018784,2]
[353492474,1739880667069,-15167.23428346,0.000188,10]
[353492475,1739880667079,-863.34688843,0.000188,2]
[353492476,1739880667089,-863.34688843,0.000188,2]
[353492477,1739880667098,-863.34688843,0.000188,2]
[353492478,1739880667108,-863.34688843,0.000188,2]
[353492479,1739880667117,-863.34688843,0.000188,2]
[353492480,1739880667126,-863.34688843,0.000188,2]
[353492481,1739880667136,-863.34688843,0.000188,2]
[353492482,1739880667145,-863.34688843,0.000188,2]
[353492483,1739880667155,-863.34688843,0.000188,2]
[353492484,1739880667164,-863.34688843,0.000188,2]
[353492485,1739880667174,-863.34688843,0.000188,2]
[353492486,1739880667183,-863.34688843,0.000188,2]
[353492487,1739880667192,-863.34688843,0.000188,2]
[353492488,1739880667202,-863.34688843,0.000188,2]
[353492489,1739880667212,-863.34688843,0.000188,2]
[353492490,1739880667223,-863.34688843,0.000188,2]
[353492491,1739880667233,-863.34688843,0.000188,2]
[353492492,1739880667242,-863.34688843,0.000188,2]
[353492493,1739880667251,-863.34688843,0.000188,2]
[353492494,1739880667260,-863.34,0.000188,2]
[353492495,1739880667270,-898.30224494,0.000188,2]
[353492496,1739880667279,-898.30224494,0.000188,2]
[353492497,1739880667288,-898.30224494,0.000188,2]
[353492498,1739880667297,-898.30224494,0.000188,2]
[353492499,1739880667306,-898.30224494,0.000188,2]
[353492500,1739880667316,-898.30224494,0.000188,2]
[353492501,1739880667325,-898.30224494,0.000188,2]
[353492502,1739880667333,-898.30224494,0.000188,2]
[353492503,1739880667342,-898.30224494,0.000188,2]
[353492504,1739880667352,-898.30224494,0.000188,2]
[353492505,1739880667361,-898.30224494,0.000188,2]
[353492506,1739880667370,-898.30224494,0.000188,2]
[353492507,1739880667379,-898.30224494,0.000188,2]
[353492508,1739880667388,-898.30224494,0.000188,2]
[353492509,1739880667397,-898.30224494,0.000188,2]
[353492510,1739880667407,-898.30224494,0.000188,2]
[353492511,1739880667416,-898.30224494,0.000188,2]
[353492512,1739880667425,-898.30224494,0.000188,2]
[353492513,1739880667434,-898.30224494,0.000188,2]
[353492514,1739880667443,-898.3,0.000188,2]
[353492515,1739880667452,-1138.07941142,0.000188,2]
[353492516,1739880667462,-1138.07941142,0.000188,2]
[353492517,1739880667471,-1138.07941142,0.000188,2]
[353492518,1739880667480,-1138.07941142,0.000188,2]
[353492519,1739880667489,-1138.07941142,0.000188,2]
[353492520,1739880667499,-1138.07941142,0.000188,2]
[353492521,1739880667508,-1138.07941142,0.000188,2]
[353492522,1739880667517,-1138.07941142,0.000188,2]
[353492523,1739880667526,-1138.07941142,0.000188,2]
[353492524,1739880667535,-1138.07941142,0.000188,2]
[353492525,1739880667544,-1138.07941142,0.000188,2]
[353492526,1739880667553,-1138.07941142,0.000188,2]
[353492527,1739880667563,-1138.07941142,0.000188,2]
[353492528,1739880667572,-1138.07941142,0.000188,2]
[353492529,1739880667581,-1138.07941142,0.000188,2]
[353492530,1739880667590,-1138.07941142,0.000188,2]
[353492531,1739880667599,-1138.07941142,0.000188,2]
[353492532,1739880667609,-1138.07941142,0.000188,2]
[353492533,1739880667618,-1138.07941142,0.000188,2]
[353492534,1739880667627,-1138.07,0.000188,2]
[353492535,1739880667637,-500.0,0.00018821,2]
[353492536,1739880667646,-997.56885048,0.0001888,2]
[353492537,1739880667656,-1500.0,0.00018884,4]
[353492538,1739880667665,-1278.580034,0.00018887,2]
[353492539,1739880667678,-3323.7366844,0.00018887,2]
[353492540,1739880667688,-335.78411,0.00018888,7]
[353492541,1739880667698,-15580.81933381,0.00018888,2]
[353492542,1739880667708,-150.0,0.0001889,2]
[353492543,1739880667718,-1100.0,0.00018896,2]
[353492544,1739880667728,-500.0,0.00018896,2]
[353492545,1739880667738,-1100.0,0.00018896,2]
[353492546,1739880667747,-20002.3994788,0.000189,14]
[353492547,1739880667757,-25638.07114047,0.000189,2]
[353492548,1739880667766,-2127656.72054905,0.000189,2]
[353492549,1739880667776,-262.8214346,0.000189,2]
[353492550,1739880667785,-500.0,0.00018921,2]
[353492551,1739880667794,-300.0,0.00018968,2]
[353492552,1739880667804,-56917.19798025,0.0001898,21]
[353492553,1739880667814,-1623.3656611,0.00018987,2]
[353492554,1739880667823,-1968.1512883,0.00018987,2]
[353492555,1739880667832,-2312.9369155,0.00018987,2]
[353492556,1739880667842,-2657.7225426,0.00018987,2]
[353492557,1739880667852,-4220.0252285,0.00018987,2]
[353492558,1739880667862,-5116.3137726,0.00018987,2]
[353492559,1739880667871,-6012.6023167,0.00018987,2]
[353492560,1739880667881,-6908.8908608,0.00018987,2]
[353492561,1739880667890,-900.0,0.00019,20]
[353492562,1739880667900,-41729.68794716,0.00019,2]
[353492563,1739880667909,-15337419.53195331,0.00019,2]
[353492564,1739880667918,-12754.21615074,0.00019,2]
[353492565,1739880667927,-53595.7899634,0.00019,3]
[353492566,1739880667936,-91140.39820335,0.00019,2]
[353492567,1739880667945,-53612.46971776,0.00019,2]
[353492568,1739880667954,-77230.16913589,0.00019,2]
[353492569,1739880667963,-19447.15705533,0.00019,2]
[353492570,1739880667973,-9001.37437234,0.00019,2]
[353492571,1739880667983,-41624.66084763,0.00019,2]
[353492572,1739880667993,-17570.72934827,0.00019,3]
[353492573,1739880668002,-7601.42679162,0.00019,2]
[353492574,1739880668011,-961.61,0.00019,2]
[353492575,1739880668020,-3715.23233308,0.00019,2]
[353492576,1739880668029,-110657.20287561,0.00019,15]
[353492577,1739880668038,-10345.16268864,0.00019,2]
[353492578,1739880668048,-15221.68486815,0.00019,2]
[353492579,1739880668057,-25000.0,0.00019009,2]
[353492580,1739880668067,-341.16389283,0.0001901,7]
[353492581,1739880668076,-1000.0,0.0001902,2]
[353492582,1739880668086,-500.0,0.00019021,2]
[353492583,1739880668095,-25000.0,0.00019087,2]
[353492584,1739880668104,-335.78411,0.00019088,7]
[353492585,1739880668114,-1800.0,0.000191,2]
[353492586,1739880668123,-1800.0,0.000191,2]
[353492587,1739880668132,-1800.0,0.000191,2]
[353492588,1739880668141,-1800.0,0.000191,2]
[353492589,1739880668150,-1800.0,0.000191,2]
[353492590,1739880668159,-1800.0,0.000191,2]
[353492591,1739880668169,-1800.0,0.000191,2]
[353492592,1739880668178,-1800.0,0.000191,2]
[353492593,1739880668187,-1800.0,0.000191,2]
[353492594,1739880668196,-1000.0,0.000191,2]
[353492595,1739880668206,-1800.0,0.000191,2]
[353492596,1739880668215,-1000.0,0.000191,2]
[353492597,1739880668225,-1800.0,0.000191,2]
[353492598,1739880668236,-1000.0,0.000191,2]
[353492599,1739880668246,-1800.0,0.000191,2]
[353492600,1739880668255,-500.0,0.000191,2]
[353492601,1739880668264,-1000.0,0.000191,2]
[353492602,1739880668273,-500.0,0.000191,2]
[353492603,1739880668283,-1800.0,0.000191,2]
[353492604,1739880668292,-1000.0,0.000191,2]
[353492605,1739880668302,-1000.0,0.000191,2]
[353492606,1739880668311,-2907.87816945,0.000191,2]
[353492607,1739880668320,-500.59545447,0.000191,2]
[353492608,1739880668329,-1000.0,0.000191,2]
[353492609,1739880668338,-1000.0,0.000191,2]
[353492610,1739880668347,-1000.0,0.000191,2]
[353492611,1739880668356,-1000.0,0.000191,2]
[353492612,1739880668365,-1000.0,0.000191,2]
[353492613,1739880668374,-591.63404783,0.000191,2]
[353492614,1739880668383,-1000.0,0.000191,2]
[353492615,1739880668393,-1725.27766929,0.000191,2]
[353492616,1739880668402,-766.35412573,0.000191,2]
[353492617,1739880668411,-500.0,0.000191,2]
[353492618,1739880668420,-500.0,0.000191,2]
[353492619,1739880668430,-500.0,0.000191,2]
[353492620,1739880668439,-500.0,0.000191,2]
[353492621,1739880668448,-500.0,0.000191,2]
[353492622,1739880668457,-501.07255175,0.000191,2]
[353492623,1739880668466,-500.0,0.000191,2]
[353492624,1739880668475,-580.46071632,0.000191,2]
[353492625,1739880668485,-500.0,0.000191,2]
[353492626,1739880668495,-500.0,0.000191,2]
[353492627,1739880668504,-500.0,0.000191,2]
[353492628,1739880668513,-500.0,0.000191,2]
[353492629,1739880668523,-500.0,0.000191,2]
[353492630,1739880668532,-548.12995629,0.000191,2]
[353492631,1739880668541,-500.0,0.000191,2]
[353492632,1739880668587,-500.0,0.000191,2]
[353492633,1739880668596,-749.43937109,0.000191,2]
[353492634,1739880668605,-500.0,0.000191,2]
[353492635,1739880668614,-500.0,0.000191,2]
[353492636,1739880668623,-500.0,0.000191,2]
[353492637,1739880668632,-500.0,0.000191,2]
[353492638,1739880668641,-500.0,0.000191,2]
[353492639,1739880668650,-706.96484617,0.000191,2]
[353492640,1739880668659,-500.0,0.000191,2]
[353492641,1739880668668,-500.0,0.000191,2]
[353492642,1739880668680,-500.0,0.000191,2]
[353492643,1739880668689,-500.0,0.000191,2]
[353492644,1739880668698,-500.0,0.000191,2]
[353492645,1739880668708,-500.0,0.000191,2]
[353492646,1739880668718,-600.0,0.000191,2]
[353492647,1739880668727,-600.0,0.000191,2]
[353492648,1739880668736,-500.0,0.000191,2]
[353492649,1739880668745,-500.0,0.000191,2]
[353492650,1739880668755,-600.0,0.000191,2]
[353492651,1739880668764,-600.0,0.000191,2]
[353492652,1739880668774,-600.0,0.000191,2]
[353492653,1739880668783,-500.0,0.000191,2]
[353492654,1739880668792,-600.0,0.000191,2]
[353492655,1739880668802,-500.0,0.000191,2]
[353492656,1739880668811,-600.0,0.000191,2]
[353492657,1739880668820,-500.0,0.000191,2]
[353492658,1739880668829,-600.0,0.000191,2]
[353492659,1739880668838,-500.0,0.000191,2]
[353492660,1739880668847,-600.0,0.000191,2]
[353492661,1739880668856,-500.0,0.000191,2]
[353492662,1739880668865,-600.0,0.000191,2]
[353492663,1739880668874,-600.0,0.000191,2]
[353492664,1739880668884,-599.57675718,0.000191,2]
[353492665,1739880668893,-748.13604299,0.000191,2]
[353492666,1739880668902,-500.0,0.000191,2]
[353492667,1739880668911,-500.0,0.000191,2]
[353492668,1739880668920,-500.0,0.000191,2]
[353492669,1739880668930,-500.0,0.000191,2]
[353492670,1739880668939,-500.0,0.000191,2]
[353492671,1739880668948,-150.0,0.00019106,2]
[353492672,1739880668957,-464.85,0.00019108,2]
[353492673,1739880668965,-540.82,0.00019109,2]